[Event "Late-Titled-Tuesday-Blitz-May-07-2024"]
[Site "Chess.com"]
[Date "2024.05.07"]
[Round "10"]
[White "kingofthenil"]
[Black "wannabe2700"]
[Result "1-0"]
[WhiteElo "2832"]
[BlackElo "2566"]
[TimeControl "180+1"]
[EndTime "15:53:13 PDT"]
[Termination "kingofthenil won by resignation"]

1. d4 {[%clk 0:03:00.9]} 1... a5 {[%clk 0:03:00.9]} 2. e4 {[%clk 0:02:58.3]}
2... Ra6 {[%clk 0:03:01.8]} 3. Bxa6 {[%clk 0:02:58.5]} 3... Nxa6 {[%clk
0:03:01.2]} 4. Nc3 {[%clk 0:02:58.8]} 4... b6 {[%clk 0:03:02.1]} 5. Be3 {[%clk
0:02:58.3]} 5... Bb7 {[%clk 0:03:03]} 6. f3 {[%clk 0:02:58.8]} 6... e6 {[%clk
0:03:03.4]} 7. Nge2 {[%clk 0:02:59.3]} 7... Ne7 {[%clk 0:03:04]} 8. h4 {[%clk
0:02:58.8]} 8... h5 {[%clk 0:03:02]} 9. Qd2 {[%clk 0:02:43.9]} 9... d5 {[%clk
0:03:01.2]} 10. O-O-O {[%clk 0:02:27.5]} 10... Qd7 {[%clk 0:02:55.6]} 11. Nf4
{[%clk 0:02:25.4]} 11... dxe4 {[%clk 0:02:50.1]} 12. fxe4 {[%clk 0:02:24.9]}
12... b5 {[%clk 0:02:50.5]} 13. d5 {[%clk 0:02:21.4]} 13... b4 {[%clk
0:02:50.5]} 14. Nce2 {[%clk 0:02:11.7]} 14... e5 {[%clk 0:02:35.3]} 15. Nd3
{[%clk 0:02:10.5]} 15... Ng6 {[%clk 0:02:35.1]} 16. Ng3 {[%clk 0:02:09.3]} 16...
Be7 {[%clk 0:02:32.4]} 17. Nf5 {[%clk 0:02:08.9]} 17... O-O {[%clk 0:02:27.2]}
18. g4 {[%clk 0:02:08.6]} 18... c6 {[%clk 0:01:52.9]} 19. gxh5 {[%clk
0:02:03.4]} 19... cxd5 {[%clk 0:01:38.4]} 20. hxg6 {[%clk 0:02:01.8]} 20... f6
{[%clk 0:01:34.9]} 21. Qe2 {[%clk 0:01:58.4]} 21... Qxf5 {[%clk 0:01:12.5]} 22.
exf5 {[%clk 0:01:57.4]} 1-0

[Event "Late-Titled-Tuesday-Blitz-May-07-2024"]
[Site "Chess.com"]
[Date "2024.05.07"]
[Round "10"]
[White "Der_Balak_3Halak"]
[Black "shirovin"]
[Result "1-0"]
[WhiteElo "2398"]
[BlackElo "2109"]
[TimeControl "180+1"]
[EndTime "15:53:14 PDT"]
[Termination "Der_Balak_3Halak won by checkmate"]

1. c4 {[%clk 0:03:00.9]} 1... f5 {[%clk 0:02:57.8]} 2. d4 {[%clk 0:03:00.1]}
2... Nf6 {[%clk 0:02:57.7]} 3. Bg5 {[%clk 0:03:00.5]} 3... Ne4 {[%clk
0:02:48.9]} 4. h4 {[%clk 0:03:00.1]} 4... g6 {[%clk 0:02:47.8]} 5. Nc3 {[%clk
0:02:57.8]} 5... Nxg5 {[%clk 0:02:39.5]} 6. hxg5 {[%clk 0:02:57.1]} 6... Bg7
{[%clk 0:02:40.1]} 7. Nf3 {[%clk 0:02:51.2]} 7... O-O {[%clk 0:02:34]} 8. e3
{[%clk 0:02:51.5]} 8... d6 {[%clk 0:02:29.4]} 9. Qb3 {[%clk 0:02:33.4]} 9... e5
{[%clk 0:02:13.4]} 10. c5+ {[%clk 0:02:24.4]} 10... Kh8 {[%clk 0:02:11.1]} 11.
O-O-O {[%clk 0:02:24.5]} 11... e4 {[%clk 0:02:06.9]} 12. Bc4 {[%clk 0:01:51.4]}
12... exf3 {[%clk 0:01:45.2]} 13. Rxh7+ {[%clk 0:01:51]} 13... Kxh7 {[%clk
0:01:37.3]} 14. Bg8+ {[%clk 0:01:27.5]} 14... Rxg8 {[%clk 0:01:25.8]} 15. Rh1+
{[%clk 0:01:26.5]} 15... Bh6 {[%clk 0:01:26]} 16. Qf7+ {[%clk 0:01:26.6]} 16...
Rg7 {[%clk 0:01:25.6]} 17. Rxh6# {[%clk 0:01:27]} 1-0

[Event "Late-Titled-Tuesday-Blitz-May-07-2024"]
[Site "Chess.com"]
[Date "2024.05.07"]
[Round "10"]
[White "Pig-filth"]
[Black "toninhojit"]
[Result "1-0"]
[WhiteElo "2328"]
[BlackElo "2582"]
[TimeControl "180+1"]
[EndTime "15:53:32 PDT"]
[Termination "Pig-filth won by resignation"]

1. d4 {[%clk 0:03:00.9]} 1... Nf6 {[%clk 0:02:56.2]} 2. Bg5 {[%clk 0:03:00.9]}
2... d5 {[%clk 0:02:54.1]} 3. Bxf6 {[%clk 0:02:58.8]} 3... gxf6 {[%clk 0:02:55]}
4. e3 {[%clk 0:02:58.6]} 4... c5 {[%clk 0:02:55.2]} 5. Nc3 {[%clk 0:02:57.6]}
5... cxd4 {[%clk 0:02:52.3]} 6. exd4 {[%clk 0:02:51.8]} 6... Nc6 {[%clk
0:02:51.8]} 7. Qh5 {[%clk 0:02:48.8]} 7... e6 {[%clk 0:02:48.7]} 8. O-O-O {[%clk
0:02:46.1]} 8... Bb4 {[%clk 0:02:47.9]} 9. Nge2 {[%clk 0:02:39]} 9... f5 {[%clk
0:02:41.3]} 10. g4 {[%clk 0:02:35.5]} 10... fxg4 {[%clk 0:02:37.2]} 11. Qxg4
{[%clk 0:02:32.3]} 11... Qf6 {[%clk 0:02:35.1]} 12. Qg3 {[%clk 0:02:28.7]} 12...
a6 {[%clk 0:02:25.4]} 13. Kb1 {[%clk 0:02:21.9]} 13... Qe7 {[%clk 0:02:25.4]}
14. Nf4 {[%clk 0:02:17.4]} 14... Bd6 {[%clk 0:01:12.4]} 15. Re1 {[%clk
0:02:11.2]} 15... Nxd4 {[%clk 0:01:01.4]} 16. Ncxd5 {[%clk 0:02:07.3]} 16... Qd8
{[%clk 0:01:01.3]} 17. Qg7 {[%clk 0:02:02.6]} 17... Rf8 {[%clk 0:00:59.5]} 18.
Nf6+ {[%clk 0:01:57.3]} 1-0

[Event "Late-Titled-Tuesday-Blitz-May-07-2024"]
[Site "Chess.com"]
[Date "2024.05.07"]
[Round "10"]
[White "Hirna2005"]
[Black "Zampronha1971"]
[Result "1-0"]
[WhiteElo "2354"]
[BlackElo "2448"]
[TimeControl "180+1"]
[EndTime "15:53:49 PDT"]
[Termination "Hirna2005 won by checkmate"]

1. e4 {[%clk 0:03:00.9]} 1... c5 {[%clk 0:02:59]} 2. c3 {[%clk 0:03:00.6]} 2...
Nf6 {[%clk 0:02:57.8]} 3. e5 {[%clk 0:03:00.4]} 3... Nd5 {[%clk 0:02:58.4]} 4.
Nf3 {[%clk 0:03:01]} 4... e6 {[%clk 0:02:55.8]} 5. d4 {[%clk 0:03:00.5]} 5...
cxd4 {[%clk 0:02:55.8]} 6. cxd4 {[%clk 0:03:00.9]} 6... b6 {[%clk 0:02:55.9]} 7.
Bd2 {[%clk 0:03:00.7]} 7... Bb7 {[%clk 0:02:56.3]} 8. Nc3 {[%clk 0:03:00.5]}
8... d6 {[%clk 0:02:55.4]} 9. Bb5+ {[%clk 0:02:53.2]} 9... Nd7 {[%clk
0:02:55.1]} 10. O-O {[%clk 0:02:49.8]} 10... Nxc3 {[%clk 0:02:55.2]} 11. bxc3
{[%clk 0:02:45.8]} 11... Qc7 {[%clk 0:02:52.9]} 12. exd6 {[%clk 0:02:41.1]}
12... Bxd6 {[%clk 0:02:51.7]} 13. h3 {[%clk 0:02:41.3]} 13... O-O {[%clk
0:02:51]} 14. Qe2 {[%clk 0:02:40.6]} 14... Rac8 {[%clk 0:02:43.7]} 15. Rfe1
{[%clk 0:02:38.8]} 15... Nf6 {[%clk 0:02:42.9]} 16. Bd3 {[%clk 0:02:29.3]} 16...
Bd5 {[%clk 0:02:35.7]} 17. Ne5 {[%clk 0:02:21.8]} 17... Bxe5 {[%clk 0:02:28.5]}
18. dxe5 {[%clk 0:02:21.9]} 18... Nd7 {[%clk 0:02:27.9]} 19. Qh5 {[%clk
0:02:17.2]} 19... g6 {[%clk 0:02:25.4]} 20. Qh6 {[%clk 0:02:17.4]} 20... Nxe5
{[%clk 0:02:03.8]} 21. Bf4 {[%clk 0:01:52.6]} 21... f6 {[%clk 0:02:03.6]} 22. c4
{[%clk 0:01:36.1]} 22... Bb7 {[%clk 0:02:00.4]} 23. Bc2 {[%clk 0:01:27.3]} 23...
Qc6 {[%clk 0:01:56.2]} 24. Be4 {[%clk 0:01:23.7]} 24... Qc7 {[%clk 0:01:51.6]}
25. Bxb7 {[%clk 0:01:21.7]} 25... Qxb7 {[%clk 0:01:51.8]} 26. Bxe5 {[%clk
0:01:18.8]} 26... fxe5 {[%clk 0:01:49.4]} 27. Rxe5 {[%clk 0:01:19.4]} 27... Rxc4
{[%clk 0:01:46]} 28. Rxe6 {[%clk 0:01:13.9]} 28... Rc2 {[%clk 0:01:37.9]} 29.
Rxg6+ {[%clk 0:01:13]} 29... Kh8 {[%clk 0:01:34]} 30. Qxf8# {[%clk 0:01:12.1]}
1-0

[Event "Late-Titled-Tuesday-Blitz-May-07-2024"]
[Site "Chess.com"]
[Date "2024.05.07"]
[Round "10"]
[White "lilylg"]
[Black "maurovargas01"]
[Result "1-0"]
[WhiteElo "2206"]
[BlackElo "1952"]
[TimeControl "180+1"]
[EndTime "15:54:01 PDT"]
[Termination "lilylg won on time"]

1. d4 {[%clk 0:03:00.9]} 1... d5 {[%clk 0:02:24.8]} 2. c4 {[%clk 0:03:00.9]}
2... c6 {[%clk 0:02:17]} 3. cxd5 {[%clk 0:03:00.3]} 3... cxd5 {[%clk 0:02:01.8]}
4. Bf4 {[%clk 0:03:00.9]} 4... h5 {[%clk 0:01:40.4]} 5. Nc3 {[%clk 0:02:54.2]}
5... Nc6 {[%clk 0:01:39.2]} 6. h4 {[%clk 0:02:51.3]} 6... Nf6 {[%clk 0:01:35.5]}
7. e3 {[%clk 0:02:51.4]} 7... Bg4 {[%clk 0:01:31]} 8. f3 {[%clk 0:02:49.5]} 8...
Bf5 {[%clk 0:01:30.9]} 9. Bd3 {[%clk 0:02:46.4]} 9... Bxd3 {[%clk 0:01:30.2]}
10. Qxd3 {[%clk 0:02:46.5]} 10... e6 {[%clk 0:01:29.8]} 11. a3 {[%clk
0:02:45.3]} 11... Bd6 {[%clk 0:01:20]} 12. Bxd6 {[%clk 0:02:42.4]} 12... Qxd6
{[%clk 0:01:18.5]} 13. Nge2 {[%clk 0:02:42.7]} 13... a6 {[%clk 0:01:18.2]} 14.
Rc1 {[%clk 0:02:42.1]} 14... g6 {[%clk 0:01:15.5]} 15. b4 {[%clk 0:02:40.8]}
15... b5 {[%clk 0:00:30.2]} 16. Nf4 {[%clk 0:02:40.6]} 16... Rc8 {[%clk
0:00:25.9]} 17. Nxg6 {[%clk 0:02:38.4]} 17... fxg6 {[%clk 0:00:25.5]} 18. Qxg6+
{[%clk 0:02:38.2]} 18... Ke7 {[%clk 0:00:19.5]} 19. Qg7+ {[%clk 0:02:38.2]}
19... Ke8 {[%clk 0:00:15.3]} 20. Qxh8+ {[%clk 0:02:37.4]} 20... Qf8 {[%clk
0:00:10.9]} 21. Qxf8+ {[%clk 0:02:35]} 21... Kxf8 {[%clk 0:00:11.8]} 22. Ne2
{[%clk 0:02:35]} 22... Nd7 {[%clk 0:00:06.6]} 23. Kf2 {[%clk 0:02:31.7]} 23...
Nb6 {[%clk 0:00:05.7]} 24. Nf4 {[%clk 0:02:30.9]} 24... Ke7 {[%clk 0:00:04.4]}
25. Nxh5 {[%clk 0:02:29.9]} 25... Nc4 {[%clk 0:00:02.2]} 26. Nf4 {[%clk
0:02:28.2]} 1-0

[Event "Late-Titled-Tuesday-Blitz-May-07-2024"]
[Site "Chess.com"]
[Date "2024.05.07"]
[Round "10"]
[White "imdvb6307"]
[Black "sammartin99"]
[Result "1-0"]
[WhiteElo "2511"]
[BlackElo "2597"]
[TimeControl "180+1"]
[EndTime "15:54:11 PDT"]
[Termination "imdvb6307 won by resignation"]

1. d4 {[%clk 0:02:47.7]} 1... Nf6 {[%clk 0:02:58]} 2. Nf3 {[%clk 0:02:48]} 2...
g6 {[%clk 0:02:56.4]} 3. c4 {[%clk 0:02:47.8]} 3... Bg7 {[%clk 0:02:55.4]} 4.
Nc3 {[%clk 0:02:47.9]} 4... d5 {[%clk 0:02:54.6]} 5. Bf4 {[%clk 0:02:47.3]} 5...
O-O {[%clk 0:02:31]} 6. Rc1 {[%clk 0:02:46.6]} 6... c5 {[%clk 0:02:15]} 7. dxc5
{[%clk 0:02:45.9]} 7... Qa5 {[%clk 0:01:52.8]} 8. cxd5 {[%clk 0:02:42.8]} 8...
Ne4 {[%clk 0:01:47.2]} 9. Be5 {[%clk 0:02:42.9]} 9... Nxc3 {[%clk 0:01:19.4]}
10. Bxc3 {[%clk 0:02:37]} 10... Bxc3+ {[%clk 0:01:16.3]} 11. Rxc3 {[%clk
0:02:35.9]} 11... Qxa2 {[%clk 0:01:17]} 12. Qd2 {[%clk 0:02:30.7]} 12... Rd8
{[%clk 0:01:01.7]} 13. e4 {[%clk 0:02:29.5]} 13... Qb1+ {[%clk 0:00:53.6]} 14.
Qc1 {[%clk 0:02:23]} 14... Qxe4+ {[%clk 0:00:53.1]} 15. Re3 {[%clk 0:02:21.4]}
15... Qxd5 {[%clk 0:00:51]} 16. Bc4 {[%clk 0:02:17.5]} 16... Qd7 {[%clk
0:00:26.8]} 17. Bxf7+ {[%clk 0:02:13.4]} 17... Kf8 {[%clk 0:00:21.1]} 18. O-O
{[%clk 0:02:01.3]} 18... Nc6 {[%clk 0:00:21.5]} 19. Ng5 {[%clk 0:01:52.3]} 19...
Qf5 {[%clk 0:00:16.7]} 20. Rf3 {[%clk 0:01:51.2]} 1-0

[Event "Late-Titled-Tuesday-Blitz-May-07-2024"]
[Site "Chess.com"]
[Date "2024.05.07"]
[Round "10"]
[White "rynos0411"]
[Black "Bryanl106"]
[Result "0-1"]
[WhiteElo "2545"]
[BlackElo "2703"]
[TimeControl "180+1"]
[EndTime "15:54:29 PDT"]
[Termination "Bryanl106 won by resignation"]

1. Nf3 {[%clk 0:03:00.9]} 1... Nf6 {[%clk 0:03:00.3]} 2. g3 {[%clk 0:02:59.7]}
2... g6 {[%clk 0:03:00.6]} 3. Bg2 {[%clk 0:03:00.3]} 3... Bg7 {[%clk 0:03:01.5]}
4. O-O {[%clk 0:03:00.6]} 4... O-O {[%clk 0:03:02.4]} 5. d4 {[%clk 0:03:00.8]}
5... d6 {[%clk 0:03:02.5]} 6. c4 {[%clk 0:02:59.2]} 6... Nc6 {[%clk 0:03:02.2]}
7. Nc3 {[%clk 0:02:58.2]} 7... Bg4 {[%clk 0:03:02.2]} 8. h3 {[%clk 0:02:53.6]}
8... Bxf3 {[%clk 0:03:01.9]} 9. Bxf3 {[%clk 0:02:54.5]} 9... Nd7 {[%clk
0:03:02.5]} 10. e3 {[%clk 0:02:54.5]} 10... e5 {[%clk 0:03:01]} 11. d5 {[%clk
0:02:52.8]} 11... Ne7 {[%clk 0:03:01.4]} 12. e4 {[%clk 0:02:53.2]} 12... Kh8
{[%clk 0:03:02.1]} 13. Bg2 {[%clk 0:02:53.6]} 13... Ng8 {[%clk 0:03:02.5]} 14.
Be3 {[%clk 0:02:50]} 14... Bh6 {[%clk 0:03:02.5]} 15. f4 {[%clk 0:02:48.9]}
15... f5 {[%clk 0:03:01.7]} 16. Qd2 {[%clk 0:02:48.2]} 16... Qe7 {[%clk
0:03:00.6]} 17. Rae1 {[%clk 0:02:45.3]} 17... Qg7 {[%clk 0:02:47.4]} 18. b4
{[%clk 0:02:38.4]} 18... a5 {[%clk 0:02:46]} 19. a3 {[%clk 0:02:38.4]} 19...
axb4 {[%clk 0:02:42.9]} 20. axb4 {[%clk 0:02:39.3]} 20... Ngf6 {[%clk
0:02:35.9]} 21. exf5 {[%clk 0:02:20]} 21... gxf5 {[%clk 0:02:36.8]} 22. fxe5
{[%clk 0:02:20]} 22... Bxe3+ {[%clk 0:02:29.5]} 23. Qxe3 {[%clk 0:02:20.2]}
23... Nxe5 {[%clk 0:02:27.6]} 24. Rxf5 {[%clk 0:02:20.4]} 24... Ra3 {[%clk
0:02:19.7]} 25. Ref1 {[%clk 0:02:15.1]} 25... Nxc4 {[%clk 0:02:11.6]} 26. Qd4
{[%clk 0:02:12.7]} 26... Ne5 {[%clk 0:02:11.3]} 27. g4 {[%clk 0:01:55.7]} 27...
Nfd7 {[%clk 0:02:07.6]} 28. Nb5 {[%clk 0:01:48.4]} 28... Rxf5 {[%clk 0:02:05]}
29. Rxf5 {[%clk 0:01:46.8]} 29... c6 {[%clk 0:02:02.4]} 30. dxc6 {[%clk
0:01:37]} 30... bxc6 {[%clk 0:02:03.3]} 31. Qxd6 {[%clk 0:01:05.1]} 31... Ra1+
{[%clk 0:02:02.2]} 32. Kh2 {[%clk 0:01:03.8]} 32... cxb5 {[%clk 0:02:01]} 33.
Qc7 {[%clk 0:01:04.4]} 33... Qe7 {[%clk 0:01:46.8]} 34. Bd5 {[%clk 0:00:56.1]}
34... Nxg4+ {[%clk 0:01:37.4]} 35. hxg4 {[%clk 0:00:55.2]} 35... Qh4+ {[%clk
0:01:37.3]} 36. Kg2 {[%clk 0:00:52.6]} 36... Qxg4+ {[%clk 0:01:37.7]} 37. Qg3
{[%clk 0:00:53.1]} 37... Rg1+ {[%clk 0:01:32.1]} 0-1

[Event "Late-Titled-Tuesday-Blitz-May-07-2024"]
[Site "Chess.com"]
[Date "2024.05.07"]
[Round "10"]
[White "kemelgallo"]
[Black "ImportedItalianMaple"]
[Result "1-0"]
[WhiteElo "2671"]
[BlackElo "2543"]
[TimeControl "180+1"]
[EndTime "15:54:32 PDT"]
[Termination "kemelgallo won by resignation"]

1. e4 {[%clk 0:03:00]} 1... g6 {[%clk 0:03:00.4]} 2. d4 {[%clk 0:02:59.6]} 2...
Bg7 {[%clk 0:03:01]} 3. Nc3 {[%clk 0:02:58.5]} 3... d5 {[%clk 0:03:01.5]} 4.
exd5 {[%clk 0:02:48.6]} 4... Nf6 {[%clk 0:03:02]} 5. Bc4 {[%clk 0:02:45.9]} 5...
Nbd7 {[%clk 0:03:02.6]} 6. Nf3 {[%clk 0:02:45.6]} 6... Nb6 {[%clk 0:03:03]} 7.
Bb3 {[%clk 0:02:44.9]} 7... a5 {[%clk 0:03:03.7]} 8. a4 {[%clk 0:02:44.1]} 8...
Nbxd5 {[%clk 0:03:03.3]} 9. Nxd5 {[%clk 0:02:41.7]} 9... Nxd5 {[%clk 0:03:04.2]}
10. O-O {[%clk 0:02:40.9]} 10... O-O {[%clk 0:03:04.7]} 11. Ne5 {[%clk
0:02:38.4]} 11... c5 {[%clk 0:02:53.5]} 12. dxc5 {[%clk 0:02:38.4]} 12... Bxe5
{[%clk 0:02:43.7]} 13. Qxd5 {[%clk 0:02:35.6]} 13... Qc7 {[%clk 0:02:43.8]} 14.
f4 {[%clk 0:02:31.4]} 14... Bf6 {[%clk 0:02:36.4]} 15. Be3 {[%clk 0:02:15.4]}
15... Be6 {[%clk 0:02:27.6]} 16. Qe4 {[%clk 0:02:13.9]} 16... Bxb3 {[%clk
0:02:21.2]} 17. cxb3 {[%clk 0:02:14.8]} 17... Bxb2 {[%clk 0:02:21.4]} 18. Rad1
{[%clk 0:02:13]} 18... Rad8 {[%clk 0:02:14.4]} 19. h4 {[%clk 0:02:12.5]} 19...
Qc6 {[%clk 0:02:05.2]} 20. Qxc6 {[%clk 0:01:48]} 20... bxc6 {[%clk 0:02:06.1]}
21. Kf2 {[%clk 0:01:48.1]} 21... e6 {[%clk 0:01:50.7]} 22. Rd6 {[%clk
0:01:33.9]} 22... Rxd6 {[%clk 0:01:24.7]} 23. cxd6 {[%clk 0:01:34.8]} 23... Ba3
{[%clk 0:01:24.7]} 24. Rd1 {[%clk 0:01:31.2]} 24... Rd8 {[%clk 0:01:11.2]} 25.
d7 {[%clk 0:01:31.2]} 25... c5 {[%clk 0:01:11.9]} 26. f5 {[%clk 0:01:31.4]}
26... f6 {[%clk 0:00:43.5]} 27. fxe6 {[%clk 0:01:31.5]} 27... Kf8 {[%clk
0:00:44.2]} 28. Bf4 {[%clk 0:01:31.6]} 28... Ke7 {[%clk 0:00:44.4]} 29. Bc7
{[%clk 0:01:31.5]} 1-0

[Event "Late-Titled-Tuesday-Blitz-May-07-2024"]
[Site "Chess.com"]
[Date "2024.05.07"]
[Round "10"]
[White "FredddieCroderg"]
[Black "rhwr"]
[Result "0-1"]
[WhiteElo "2382"]
[BlackElo "2295"]
[TimeControl "180+1"]
[EndTime "15:54:39 PDT"]
[Termination "rhwr won by resignation"]

1. e4 {[%clk 0:03:00]} 1... c5 {[%clk 0:02:59.7]} 2. Bc4 {[%clk 0:02:59]} 2...
e6 {[%clk 0:02:57.6]} 3. Qf3 {[%clk 0:02:58.6]} 3... a6 {[%clk 0:02:56.4]} 4. d3
{[%clk 0:02:57.6]} 4... Nc6 {[%clk 0:02:53.5]} 5. Nc3 {[%clk 0:02:56.8]} 5... b5
{[%clk 0:02:53.2]} 6. Bb3 {[%clk 0:02:56.5]} 6... Nd4 {[%clk 0:02:53.3]} 7. Qg3
{[%clk 0:02:53.6]} 7... d6 {[%clk 0:02:50.9]} 8. Nf3 {[%clk 0:02:52.6]} 8...
Nxb3 {[%clk 0:02:49]} 9. axb3 {[%clk 0:02:52.2]} 9... h6 {[%clk 0:02:47.1]} 10.
Nxb5 {[%clk 0:02:49]} 10... Bb7 {[%clk 0:02:41.7]} 11. Nc3 {[%clk 0:02:46.8]}
11... Nf6 {[%clk 0:02:39.8]} 12. e5 {[%clk 0:02:42.3]} 12... dxe5 {[%clk
0:02:38.9]} 13. Nxe5 {[%clk 0:02:42.1]} 13... Nh5 {[%clk 0:01:45.4]} 14. Qh3
{[%clk 0:02:35.6]} 14... Nf6 {[%clk 0:01:42.6]} 15. Qg3 {[%clk 0:02:31.8]} 15...
Nd5 {[%clk 0:01:40.1]} 16. Ne4 {[%clk 0:02:22.5]} 16... Nf6 {[%clk 0:01:24.6]}
17. Nxf6+ {[%clk 0:02:14.7]} 17... gxf6 {[%clk 0:01:24.1]} 18. Nc4 {[%clk
0:02:09.9]} 18... Be7 {[%clk 0:01:19.9]} 19. Bd2 {[%clk 0:02:05.3]} 19... Kf8
{[%clk 0:01:18.3]} 20. O-O {[%clk 0:02:01.3]} 20... h5 {[%clk 0:01:17]} 21. h4
{[%clk 0:01:58.2]} 21... f5 {[%clk 0:01:00.6]} 22. Bg5 {[%clk 0:01:55.9]} 22...
Bxg5 {[%clk 0:00:57.5]} 23. Qxg5 {[%clk 0:01:54.4]} 23... Rg8 {[%clk 0:00:51.3]}
24. Qh6+ {[%clk 0:01:53]} 24... Ke8 {[%clk 0:00:50.5]} 25. f3 {[%clk 0:01:40.6]}
25... Qxh4 {[%clk 0:00:38.7]} 26. Nd6+ {[%clk 0:01:39.8]} 26... Ke7 {[%clk
0:00:36.3]} 27. Nxb7 {[%clk 0:01:39]} 27... Rxg2+ {[%clk 0:00:31.5]} 0-1

[Event "Late-Titled-Tuesday-Blitz-May-07-2024"]
[Site "Chess.com"]
[Date "2024.05.07"]
[Round "10"]
[White "Olkaa"]
[Black "Eloist"]
[Result "0-1"]
[WhiteElo "2603"]
[BlackElo "2450"]
[TimeControl "180+1"]
[EndTime "15:54:42 PDT"]
[Termination "Eloist won by resignation"]

1. e4 {[%clk 0:03:00.9]} 1... e6 {[%clk 0:02:59.9]} 2. d4 {[%clk 0:03:00.2]}
2... d5 {[%clk 0:03:00]} 3. Bd3 {[%clk 0:03:00.7]} 3... dxe4 {[%clk 0:02:59.5]}
4. Bxe4 {[%clk 0:03:01.6]} 4... Nf6 {[%clk 0:02:59.9]} 5. Bf3 {[%clk 0:03:02.1]}
5... c5 {[%clk 0:03:00.2]} 6. Ne2 {[%clk 0:03:02.4]} 6... Nc6 {[%clk 0:03:00.3]}
7. Be3 {[%clk 0:03:01.9]} 7... cxd4 {[%clk 0:02:59.3]} 8. Nxd4 {[%clk
0:03:01.5]} 8... Ne5 {[%clk 0:02:58.8]} 9. Nc3 {[%clk 0:03:00.5]} 9... a6 {[%clk
0:02:56.2]} 10. Qe2 {[%clk 0:03:00]} 10... Nxf3+ {[%clk 0:02:55]} 11. gxf3
{[%clk 0:03:00.9]} 11... Nd5 {[%clk 0:02:39.6]} 12. Nxd5 {[%clk 0:02:38.4]}
12... Qxd5 {[%clk 0:02:38.4]} 13. O-O-O {[%clk 0:02:38.8]} 13... Qxa2 {[%clk
0:02:32.9]} 14. Nb3 {[%clk 0:02:35.2]} 14... Be7 {[%clk 0:02:17.8]} 15. Rhg1
{[%clk 0:02:19.2]} 15... O-O {[%clk 0:02:13.4]} 16. Bd4 {[%clk 0:02:05.1]} 16...
g6 {[%clk 0:02:05.3]} 17. Qe5 {[%clk 0:01:54.2]} 17... f6 {[%clk 0:02:03.9]} 18.
Qc7 {[%clk 0:01:44.2]} 18... Rf7 {[%clk 0:02:00.3]} 19. Bb6 {[%clk 0:01:23]}
19... e5 {[%clk 0:01:41.2]} 20. Rd8+ {[%clk 0:01:01.5]} 20... Bxd8 {[%clk
0:01:32]} 21. Qxd8+ {[%clk 0:01:02.4]} 21... Kg7 {[%clk 0:01:29.8]} 22. h4
{[%clk 0:00:50.7]} 22... Be6 {[%clk 0:01:25.7]} 23. Qxa8 {[%clk 0:00:43.1]}
23... Bxb3 {[%clk 0:01:25.6]} 24. Rd1 {[%clk 0:00:27]} 24... Qa1+ {[%clk
0:01:22.3]} 25. Kd2 {[%clk 0:00:25.9]} 25... Rd7+ {[%clk 0:01:21.7]} 0-1

[Event "Late-Titled-Tuesday-Blitz-May-07-2024"]
[Site "Chess.com"]
[Date "2024.05.07"]
[Round "10"]
[White "Alexei_Gubajdullin"]
[Black "DeTimmerman"]
[Result "0-1"]
[WhiteElo "2559"]
[BlackElo "2767"]
[TimeControl "180+1"]
[EndTime "15:54:50 PDT"]
[Termination "DeTimmerman won on time"]

1. Nf3 {[%clk 0:00:56.1]} 1... Nf6 {[%clk 0:02:57.2]} 2. g3 {[%clk 0:00:55.2]}
2... e6 {[%clk 0:02:58.1]} 3. Bg2 {[%clk 0:00:47.8]} 3... d5 {[%clk 0:02:59]} 4.
O-O {[%clk 0:00:47.1]} 4... Be7 {[%clk 0:02:59.9]} 5. b3 {[%clk 0:00:44]} 5...
O-O {[%clk 0:03:00.8]} 6. Bb2 {[%clk 0:00:44.2]} 6... b6 {[%clk 0:03:01.1]} 7.
d3 {[%clk 0:00:44.5]} 7... Bb7 {[%clk 0:03:01.7]} 8. Nbd2 {[%clk 0:00:38.8]}
8... Nbd7 {[%clk 0:03:02]} 9. c4 {[%clk 0:00:26.4]} 9... c5 {[%clk 0:03:02.1]}
10. e3 {[%clk 0:00:24.1]} 10... Qc7 {[%clk 0:03:00.7]} 11. Qe2 {[%clk
0:00:19.3]} 11... Rac8 {[%clk 0:03:00.4]} 12. Rae1 {[%clk 0:00:09.7]} 12... Rfd8
{[%clk 0:03:00.3]} 13. e4 {[%clk 0:00:09.9]} 13... dxc4 {[%clk 0:02:59.7]} 14.
dxc4 {[%clk 0:00:09.4]} 14... Nb8 {[%clk 0:02:53.7]} 15. e5 {[%clk 0:00:09.6]}
15... Nfd7 {[%clk 0:02:53.5]} 16. Ne4 {[%clk 0:00:09.6]} 16... Nf8 {[%clk
0:02:52.3]} 17. h4 {[%clk 0:00:09.6]} 17... Nc6 {[%clk 0:02:52.3]} 18. Nfg5
{[%clk 0:00:09.3]} 18... h6 {[%clk 0:02:50]} 19. Nf6+ {[%clk 0:00:09.1]} 19...
Bxf6 {[%clk 0:02:40.2]} 20. exf6 {[%clk 0:00:08.8]} 20... hxg5 {[%clk
0:02:40.8]} 21. hxg5 {[%clk 0:00:07.8]} 21... Nd4 {[%clk 0:02:38.3]} 22. Qh5
{[%clk 0:00:07.6]} 22... Ng6 {[%clk 0:02:13.8]} 23. Re4 {[%clk 0:00:01.8]} 23...
Nf5 {[%clk 0:01:40.4]} 0-1